[Event "69th RUS-ch Women Superfinal 2019"]
[Site "Izhevsk"]
[Date "2019.08.20"]
[Round "9.1"]
[White "Pogonina, Natalija"]
[Black "Kashlinskaya, Alina"]
[Result "1/2-1/2"]
[ECO "D70"]
[WhiteElo "2457"]
[BlackElo "2492"]
[Annotator "ChessBase"]
[PlyCount "111"]
[EventDate "2019.08.10"]
[EventType "tourn"]
[EventCountry "RUS"]
[SourceTitle "playchess.com"]
[Source "ChessBase"]
[SourceQuality "1"]
[TimeControl "40/5400+30:1800+30"]

1. d4 {[%emt 0:00:00]} Nf6 {[%emt 0:00:00]} 2. c4 {[%emt 0:00:00]} g6 {[%emt 0:00:00]} 3. Nf3 {[%emt 0:00:26]} Bg7 {[%emt 0:00:00]} 4. e3 {[%emt 0:00:07]} O-O {[%emt 0:00:08]} 5. Be2 {[%emt 0:00:04]} d6 {[%emt 0:00:17]} 6. O-O {[%emt 0:00:11]} Nbd7 {[%emt 0:00:28]} 7. Nc3 {[%emt 0:00:33]} e5 {[%emt 0:00:11]} 8. Qc2 {[%emt 0:00:30]} Re8 {[%emt 0:00:11]} 9. Rd1 {[%emt 0:00:32]} e4 {[%emt 0:01:05]} 10. Nd2 {[%emt 0:00:15]} Qe7 {[%emt 0:00:25]} 11. b4 {[%emt 0:00:42]} Nf8 {[%emt 0:01:25]} 12. Bb2 {[%emt 0:00:17]} h5 {[%emt 0:01:28]} 13. Nb3 {[%emt 0:00:21]} N8h7 {[%emt 0:02:51]} 14. d5 {[%emt 0:04:31]} Ng5 {[%emt 0:03:11]} 15. c5 {[%emt 0:09:37]} Bg4 {[%emt 0:04:50]} 16. Rac1 {[%emt 0:04:56]} Nfh7 {[%emt 0:11:30]} 17. Bxg4 {[%emt 0:34:35]} hxg4 {[%emt 0:00:26]} 18. Ne2 {[%emt 0:00:05]} Bxb2 {[%emt 0:15:31]} 19. Qxb2 {[%emt 0:00:05]} Nf6 {[%emt 0:00:10]} 20. Ng3 {[%emt 0:03:55]} Kg7 {[%emt 0:01:19]} 21. Qc3 {[%emt 0:08:09]} Rh8 {[%emt 0:07:11]} 22. Nd4 {[%emt 0:05:24]} Qe8 {[%emt 0:06:56]} 23. cxd6 {[%emt 0:02:49]} cxd6 {[%emt 0:03:55]} 24. Qc7 {[%emt 0:01:00]} Qe5 {[%emt 0:08:45]} 25. Qxb7 {[%emt 0:05:52]} Rab8 {[%emt 0:00:21]} 26. Qxa7 {[%emt 0:03:53]} Ra8 {[%emt 0:00:11]} 27. Qc7 {[%emt 0:01:07]} Rxa2 {[%emt 0:00:13]} 28. Ne6+ {[%emt 0:03:06]} Nxe6 {[%emt 0:02:48]} 29. dxe6 {[%emt 0:00:05]} Qxe6 {[%emt 0:00:06]} 30. Rxd6 {[%emt 0:02:10]} Qe5 {[%emt 0:00:55]} 31. Qc5 {[%emt 0:02:01]} Re8 {[%emt 0:03:13]} 32. Rd4 {[%emt 0:01:19]} Rb2 {[%emt 0:02:26]} 33. Qc3 {[%emt 0:00:48]} Ra2 {[%emt 0:00:12]} 34. Rb1 {[%emt 0:01:37]} Rd8 {[%emt 0:12:56]} 35. Qc4 {[%emt 0:02:29]} Rxd4 {[%emt 0:01:37]} 36. Qxa2 {[%emt 0:03:18]} Rd3 {[%emt 0:00:27]} 37. Qc4 {[%emt 0:00:44]} Rc3 {[%emt 0:00:10]} 38. Qe2 {[%emt 0:00:31]} Rd3 {[%emt 0:01:35]} 39. b5 {[%emt 0:00:41]} Nd5 {[%emt 0:01:18]} 40. Qxg4 {[%emt 0:00:00]} Nc3 {[%emt 0:00:00]} 41. Rf1 {[%emt 0:11:00]} Qxb5 {[%emt 0:06:10]} 42. h4 {[%emt 0:01:05]} Rd2 {[%emt 0:01:26]} 43. h5 {[%emt 0:03:28]} Ne2+ {[%emt 0:02:51]} 44. Nxe2 {[%emt 0:00:10]} Qxe2 {[%emt 0:00:06]} 45. Qxe2 {[%emt 0:04:20]} Rxe2 {[%emt 0:00:11]} 46. hxg6 {[%emt 0:00:03]} Kxg6 {[%emt 0:00:16]} 47. Kh2 {[%emt 0:00:07]} Kg5 {[%emt 0:02:53]} 48. Kg3 {[%emt 0:00:10]} f5 {[%emt 0:04:33]} 49. Rc1 {[%emt 0:01:12]} Kh5 {[%emt 0:00:35]} 50. Rc5 {[%emt 0:03:08]} Kg6 {[%emt 0:01:35]} 51. Rc6+ {[%emt 0:01:00]} Kg5 {[%emt 0:00:50]} 52. Re6 {[%emt 0:00:29]} Re1 {[%emt 0:01:33]} 53. f4+ {[%emt 0:01:16]} exf3 {[%emt 0:00:11]} 54. gxf3 {[%emt 0:02:19]} Rxe3 {[%emt 0:00:59]} 55. Rxe3 {[%emt 0:00:05]} f4+ {[%emt 0:00:03]} 56. Kf2 {[%emt 0:00:06]} 1/2-1/2

[Event "69th RUS-ch Women Superfinal 2019"]
[Site "Izhevsk"]
[Date "2019.08.20"]
[Round "9.2"]
[White "Gunina, Valentina"]
[Black "Kosteniuk, Alexandra"]
[Result "1-0"]
[ECO "E20"]
[WhiteElo "2497"]
[BlackElo "2517"]
[Annotator "ChessBase"]
[PlyCount "89"]
[EventDate "2019.08.10"]
[EventType "tourn"]
[EventCountry "RUS"]
[SourceTitle "playchess.com"]
[Source "ChessBase"]
[SourceQuality "1"]
[TimeControl "40/5400+30:1800+30"]

1. d4 {[%emt 0:00:00]} Nf6 {[%emt 0:00:00]} 2. c4 {[%emt 0:00:00]} e6 {[%emt 0:00:00]} 3. Nc3 {[%emt 0:00:00]} Bb4 {[%emt 0:00:00]} 4. f3 {[%emt 0:00:00]} c5 {[%emt 0:00:00]} 5. d5 {[%emt 0:00:33]} O-O {[%emt 0:00:00]} 6. e4 {[%emt 0:00:32]} b5 {[%emt 0:00:03]} 7. e5 {[%emt 0:02:37]} Ne8 {[%emt 0:00:20]} 8. f4 {[%emt 0:08:39]} Bb7 {[%emt 0:15:10]} 9. Nf3 {[%emt 0:00:56]} exd5 {[%emt 0:02:48]} 10. cxd5 {[%emt 0:02:36]} d6 {[%emt 0:00:26]} 11. Bd3 {[%emt 0:12:01]} f5 {[%emt 0:08:35]} 12. O-O {[%emt 0:09:56]} c4 {[%emt 0:04:08]} 13. Bc2 {[%emt 0:02:25]} Bc5+ {[%emt 0:03:05]} 14. Kh1 {[%emt 0:00:34]} Nc7 {[%emt 0:00:20]} 15. Ng5 {[%emt 0:11:26]} h6 {[%emt 0:04:44]} 16. Qh5 {[%emt 0:03:36]} b4 {[%emt 0:07:29]} 17. Nce4 {[%emt 0:04:49]} fxe4 {[%emt 0:01:01]} 18. Nxe4 {[%emt 0:18:20]} Nxd5 {[%emt 0:02:06]} 19. Nxc5 {[%emt 0:06:07]} dxc5 {[%emt 0:00:02]} 20. Qg6 {[%emt 0:00:22]} Ne7 {[%emt 0:04:11]} 21. Qh7+ {[%emt 0:01:27]} Kf7 {[%emt 0:00:02]} 22. Bd1 {[%emt 0:12:33]} Qd3 {[%emt 0:10:59]} 23. Bh5+ {[%emt 0:00:06]} Ke6 {[%emt 0:00:25]} 24. Bg4+ {[%emt 0:00:07]} Nf5 {[%emt 0:00:13]} 25. Rd1 {[%emt 0:02:11]} Qc2 {[%emt 0:00:34]} 26. Bd2 {[%emt 0:00:30]} Ke7 {[%emt 0:02:04]} 27. Kg1 {[%emt 0:00:29]} Qe4 {[%emt 0:02:26]} 28. Bh3 {[%emt 0:00:01]} c3 {[%emt 0:10:49]} 29. bxc3 {[%emt 0:00:23]} bxc3 {[%emt 0:00:02]} 30. Be1 {[%emt 0:01:04]} c2 {[%emt 0:00:24]} 31. Bf2 {[%emt 0:00:34]} cxd1=Q+ {[%emt 0:03:22]} 32. Rxd1 {[%emt 0:00:01]} Bd5 {[%emt 0:14:57]} 33. Bxc5+ {[%emt 0:00:56]} Kf7 {[%emt 0:00:17]} 34. e6+ {[%emt 0:00:33]} Bxe6 {[%emt 0:01:04]} 35. Bg4 {[%emt 0:00:01]} Nd6 {[%emt 0:02:16]} 36. Bh5+ {[%emt 0:00:50]} Kf6 {[%emt 0:00:15]} 37. Bd4+ {[%emt 0:00:16]} Ke7 {[%emt 0:00:51]} 38. Qxg7+ {[%emt 0:00:06]} Rf7 {[%emt 0:00:13]} 39. Bf6+ {[%emt 0:00:49]} Kd7 {[%emt 0:00:40]} 40. Bxf7 {[%emt 0:00:00]} Kc6 {[%emt 0:00:00]} 41. Bxe6 {[%emt 0:03:57]} Qxe6 {[%emt 0:00:56]} 42. Be5 {[%emt 0:00:53]} Ne8 {[%emt 0:02:16]} 43. Rc1+ {[%emt 0:03:00]} Kb5 {[%emt 0:01:15]} 44. Rb1+ {[%emt 0:00:15]} Kc5 {[%emt 0:03:13]} 45. Qb7 {[%emt 0:01:18] Kd5} 1-0

[Event "69th RUS-ch Women Superfinal 2019"]
[Site "Izhevsk"]
[Date "2019.08.20"]
[Round "9.3"]
[White "Shafigullina, Zarina"]
[Black "Shuvalova, Polina"]
[Result "0-1"]
[ECO "A04"]
[WhiteElo "2246"]
[BlackElo "2418"]
[Annotator "ChessBase"]
[PlyCount "56"]
[EventDate "2019.08.10"]
[EventType "tourn"]
[EventCountry "RUS"]
[SourceTitle "playchess.com"]
[Source "ChessBase"]
[SourceQuality "1"]
[TimeControl "40/5400+30:1800+30"]

1. Nf3 {[%emt 0:00:00]} c5 {[%emt 0:00:00]} 2. g3 {[%emt 0:00:34]} Nc6 {[%emt 0:00:00]} 3. Bg2 {[%emt 0:00:44]} g6 {[%emt 0:00:00]} 4. d4 {[%emt 0:03:05]} cxd4 {[%emt 0:00:12]} 5. Nxd4 {[%emt 0:00:07]} Bg7 {[%emt 0:00:06]} 6. Nb3 {[%emt 0:01:33]} Nf6 {[%emt 0:00:15]} 7. e4 {[%emt 0:00:46]} d6 {[%emt 0:01:08]} 8. O-O {[%emt 0:01:55]} h5 {[%emt 0:02:00]} 9. Nc3 {[%emt 0:08:20]} h4 {[%emt 0:00:46]} 10. Nd5 {[%emt 0:02:34]} hxg3 {[%emt 0:05:28]} 11. hxg3 {[%emt 0:00:22]} Bh3 {[%emt 0:06:04]} 12. Bxh3 {[%emt 0:12:18]} Rxh3 {[%emt 0:00:05]} 13. Kg2 {[%emt 0:12:08]} Rh7 {[%emt 0:01:35]} 14. Rh1 {[%emt 0:05:10]} Rxh1 {[%emt 0:00:33]} 15. Qxh1 {[%emt 0:00:13]} e6 {[%emt 0:02:22]} 16. Nc3 {[%emt 0:04:58]} Ng4 {[%emt 0:15:40]} 17. Qh3 {[%emt 0:11:25]} Nge5 {[%emt 0:07:18]} 18. Qh7 {[%emt 0:21:58]} Qf6 {[%emt 0:00:59]} 19. f4 {[%emt 0:02:58]} O-O-O {[%emt 0:03:08]} 20. Qh4 {[%emt 0:07:05]} Qxh4 {[%emt 0:00:28]} 21. gxh4 {[%emt 0:00:04]} Nc4 {[%emt 0:00:09]} 22. f5 {[%emt 0:01:48]} Bf6 {[%emt 0:08:26]} 23. fxe6 {[%emt 0:00:37]} fxe6 {[%emt 0:00:03]} 24. Bg5 {[%emt 0:00:14]} Bxg5 {[%emt 0:00:16]} 25. hxg5 {[%emt 0:00:06]} Rh8 {[%emt 0:00:04]} 26. Kf3 {[%emt 0:01:13]} N6e5+ {[%emt 0:02:13]} 27. Ke2 {[%emt 0:00:42]} Rh2+ {[%emt 0:00:21]} 28. Kf1 {[%emt 0:00:25]} Ne3+ {[%emt 0:00:14]} 0-1

[Event "69th RUS-ch Women Superfinal 2019"]
[Site "Izhevsk"]
[Date "2019.08.20"]
[Round "9.4"]
[White "Tomilova, Elena"]
[Black "Charochkina, Daria"]
[Result "0-1"]
[ECO "A04"]
[WhiteElo "2281"]
[BlackElo "2338"]
[Annotator "NA"]
[PlyCount "64"]
[EventDate "2019.08.10"]
[EventType "tourn"]
[EventCountry "RUS"]
[SourceTitle "playchess.com"]
[Source "ChessBase"]
[SourceQuality "1"]
[TimeControl "40/5400+30:1800+30"]

1. Nf3 {[%emt 0:00:00]} d6 {[%emt 0:00:00]} 2. g3 {[%emt 0:00:00]} e5 {[%emt 0:00:00]} 3. d3 {[%emt 0:00:01]} f5 {[%emt 0:00:10]} 4. Bg2 {[%emt 0:00:25]} Nf6 {[%emt 0:00:13]} 5. c4 {[%emt 0:00:14]} Be7 {[%emt 0:00:18]} 6. Nc3 {[%emt 0:00:33]} O-O {[%emt 0:00:15]} 7. O-O {[%emt 0:05:31]} Qe8 {[%emt 0:01:41]} 8. e3 {[%emt 0:04:32]} c6 {[%emt 0:03:48]} 9. b4 {[%emt 0:01:07]} Kh8 {[%emt 0:05:18]} 10. Rb1 {[%emt 0:05:41]} a6 {[%emt 0:00:54]} 11. a4 {[%emt 0:01:37]} Be6 {[%emt 0:16:23]} 12. Ng5 {[%emt 0:13:28]} Bg8 $1 {[%emt 0:01:28]} 13. f4 {[%emt 0:00:55]} h6 {[%emt 0:04:20]} 14. Nf3 {[%emt 0:03:05]} Nbd7 {[%emt 0:02:10]} 15. fxe5 {[%emt 0:07:50]} dxe5 {[%emt 0:00:34]} 16. Nh4 $1 {[%emt 0:00:23]} e4 {[%emt 0:05:19]} 17. Rxf5 $17 {[%emt 0:23:20]} (17. Bb2 $11) 17... exd3 {[%emt 0:08:11]} 18. Qxd3 {[%emt 0:01:06]} Bh7 {[%emt 0:03:33]} 19. Bh3 {[%emt 0:02:57]} Rd8 {[%emt 0:11:00]} 20. Qe2 {[%emt 0:04:48]} g5 {[%emt 0:01:10]} 21. Ng2 {[%emt 0:00:47]} g4 {[%emt 0:02:34]} 22. e4 {[%emt 0:03:47]} Bxf5 {[%emt 0:10:01]} 23. exf5 {[%emt 0:00:05]} Bxb4 {[%emt 0:02:44]} 24. Rxb4 {[%emt 0:03:13]} Qxe2 {[%emt 0:00:04]} 25. Nxe2 {[%emt 0:00:05]} Ne5 {[%emt 0:01:23]} 26. Ne3 {[%emt 0:06:44]} Nd3 {[%emt 0:03:30]} 27. Rxb7 {[%emt 0:01:21]} gxh3 {[%emt 0:02:16]} 28. Ba3 {[%emt 0:01:33]} Rb8 {[%emt 0:02:06]} 29. Ra7 {[%emt 0:04:29]} Rb1+ {[%emt 0:00:23]} 30. Nf1 {[%emt 0:00:04]} Ne4 {[%emt 0:05:33]} 31. g4 {[%emt 0:02:07]} Nd2 {[%emt 0:01:15]} 32. Neg3 {[%emt 0:00:10]} Nf3+ {[%emt 0:00:46]} 0-1

[Event "69th RUS-ch Women Superfinal 2019"]
[Site "Izhevsk"]
[Date "2019.08.20"]
[Round "9.5"]
[White "Goryachkina, Aleksandra"]
[Black "Girya, Olga"]
[Result "1-0"]
[ECO "B18"]
[WhiteElo "2564"]
[BlackElo "2457"]
[Annotator "ChessBase"]
[PlyCount "91"]
[EventDate "2019.08.10"]
[EventType "tourn"]
[EventCountry "RUS"]
[SourceTitle "playchess.com"]
[Source "ChessBase"]
[SourceQuality "1"]
[TimeControl "40/5400+30:1800+30"]

1. e4 {[%emt 0:00:00]} c6 {[%emt 0:00:00]} 2. d4 {[%emt 0:00:00]} d5 {[%emt 0:00:00]} 3. Nc3 {[%emt 0:00:14]} dxe4 {[%emt 0:00:00]} 4. Nxe4 {[%emt 0:00:06]} Bf5 {[%emt 0:00:00]} 5. Ng3 {[%emt 0:00:09]} Bg6 {[%emt 0:00:01]} 6. h4 {[%emt 0:00:07]} h6 {[%emt 0:00:05]} 7. Nf3 {[%emt 0:00:22]} e6 {[%emt 0:06:16]} 8. Ne5 {[%emt 0:01:31]} Bh7 {[%emt 0:00:06]} 9. Bd3 {[%emt 0:01:03]} Bxd3 {[%emt 0:00:06]} 10. Qxd3 {[%emt 0:00:05]} Nd7 {[%emt 0:00:15]} 11. Bf4 {[%emt 0:01:30]} Nxe5 {[%emt 0:01:06]} 12. Bxe5 {[%emt 0:00:56]} Qa5+ {[%emt 0:00:07]} 13. c3 {[%emt 0:00:28]} Nf6 {[%emt 0:00:11]} 14. O-O {[%emt 0:00:47]} Ng4 {[%emt 0:00:16]} 15. Rad1 {[%emt 0:01:10]} Nxe5 {[%emt 0:00:10]} 16. dxe5 {[%emt 0:00:04]} Rd8 {[%emt 0:00:08]} 17. Qxd8+ {[%emt 0:00:19]} Qxd8 {[%emt 0:00:05]} 18. Rxd8+ {[%emt 0:00:05]} Kxd8 {[%emt 0:00:04]} 19. Rd1+ {[%emt 0:00:22]} Kc7 {[%emt 0:00:32]} 20. h5 {[%emt 0:00:54]} Be7 {[%emt 0:02:19]} 21. Kf1 {[%emt 0:00:31]} Rd8 {[%emt 0:04:18]} 22. Rxd8 {[%emt 0:00:10]} Kxd8 {[%emt 0:00:04]} 23. Ke2 {[%emt 0:00:11]} f6 {[%emt 0:15:28]} 24. Nf1 {[%emt 0:04:27]} Kd7 {[%emt 0:30:55]} 25. exf6 {[%emt 0:10:27]} gxf6 {[%emt 0:00:04]} 26. g4 {[%emt 0:00:14]} f5 {[%emt 0:24:18]} 27. Ne3 {[%emt 0:04:39]} fxg4 {[%emt 0:01:58]} 28. Nxg4 {[%emt 0:00:06]} Bf8 {[%emt 0:00:35]} 29. Kd3 {[%emt 0:02:58]} b5 {[%emt 0:01:09]} 30. Ke4 {[%emt 0:07:49]} a5 {[%emt 0:02:55]} 31. f4 {[%emt 0:06:26]} a4 {[%emt 0:01:44]} 32. f5 {[%emt 0:11:11]} exf5+ {[%emt 0:00:49]} 33. Kxf5 {[%emt 0:00:04]} a3 {[%emt 0:05:07]} 34. b3 {[%emt 0:13:18]} Kd6 {[%emt 0:02:29]} 35. Kg6 {[%emt 0:08:57]} Kd5 {[%emt 0:02:37]} 36. Nxh6 {[%emt 0:04:03]} b4 {[%emt 0:01:01]} 37. c4+ {[%emt 0:06:52]} Kd4 {[%emt 0:00:25]} 38. Nf5+ {[%emt 0:01:34]} Kc3 {[%emt 0:00:17]} 39. Kf7 {[%emt 0:01:01]} Bc5 {[%emt 0:00:44]} 40. h6 {[%emt 0:00:00]} Kb2 {[%emt 0:00:00]} 41. h7 {[%emt 0:00:27]} Kxa2 {[%emt 0:01:26]} 42. h8=Q {[%emt 0:00:39]} Kxb3 {[%emt 0:02:11]} 43. Nd4+ {[%emt 0:08:17]} Bxd4 {[%emt 0:01:32]} 44. Qxd4 {[%emt 0:00:14]} Ka2 {[%emt 0:03:18]} 45. Qd2+ {[%emt 0:00:28]} Kb3 {[%emt 0:00:02]} 46. Qc1 {[%emt 0:01:26]} 1-0

[Event "69th RUS-ch Women Superfinal 2019"]
[Site "Izhevsk"]
[Date "2019.08.20"]
[Round "9.6"]
[White "Bodnaruk, Anastasia"]
[Black "Potapova, Margarita"]
[Result "0-1"]
[ECO "B90"]
[WhiteElo "2440"]
[BlackElo "2292"]
[Annotator "NA"]
[PlyCount "154"]
[EventDate "2019.08.10"]
[EventType "tourn"]
[EventCountry "RUS"]
[SourceTitle "playchess.com"]
[Source "ChessBase"]
[SourceQuality "1"]
[TimeControl "40/5400+30:1800+30"]

1. e4 {[%emt 0:00:00]} c5 {[%emt 0:00:00]} 2. Nf3 {[%emt 0:00:00]} d6 {[%emt 0:00:00]} 3. d4 {[%emt 0:00:00]} cxd4 {[%emt 0:00:00]} 4. Nxd4 {[%emt 0:00:00]} Nf6 {[%emt 0:00:00]} 5. Nc3 {[%emt 0:00:00]} a6 {[%emt 0:00:00]} 6. Bc4 {[%emt 0:00:00]} e6 {[%emt 0:01:01]} 7. Bb3 {[%emt 0:00:03]} Be7 {[%emt 0:00:53]} 8. O-O {[%emt 0:00:33]} b5 {[%emt 0:02:08]} 9. Qf3 {[%emt 0:01:16]} Qc7 {[%emt 0:04:27]} 10. Qg3 {[%emt 0:01:07]} O-O {[%emt 0:00:35]} 11. Bh6 {[%emt 0:00:56]} Ne8 {[%emt 0:00:06]} 12. Rad1 {[%emt 0:13:10]} Bd7 {[%emt 0:01:30]} 13. f4 {[%emt 0:09:26]} Nc6 {[%emt 0:30:08]} 14. Nxc6 {[%emt 0:08:02]} Bxc6 {[%emt 0:03:25]} 15. f5 {[%emt 0:02:43]} Kh8 $11 {[%emt 0:04:35]} 16. f6 {[%emt 0:30:46]} gxh6 {[%emt 0:02:22]} 17. fxe7 {[%emt 0:00:04]} Qxe7 {[%emt 0:00:40]} 18. Qe3 {[%emt 0:01:09]} Rg8 {[%emt 0:20:45]} 19. Rf2 {[%emt 0:02:41]} Rg7 {[%emt 0:02:54]} 20. Rdf1 {[%emt 0:08:15]} Qa7 {[%emt 0:01:03]} 21. Qxh6 {[%emt 0:02:14]} b4 {[%emt 0:00:55]} 22. Ne2 {[%emt 0:00:12]} Bxe4 {[%emt 0:01:02]} 23. Ng3 {[%emt 0:00:03]} Bg6 {[%emt 0:04:37]} 24. Kh1 {[%emt 0:05:59]} d5 {[%emt 0:01:36]} 25. Qf4 {[%emt 0:04:05]} a5 {[%emt 0:04:10]} 26. c4 {[%emt 0:02:17]} bxc3 {[%emt 0:01:09]} 27. bxc3 {[%emt 0:00:00]} Qc7 {[%emt 0:00:31]} 28. Qd4 {[%emt 0:01:45]} Nd6 {[%emt 0:00:50]} 29. Bc2 {[%emt 0:00:48]} Kg8 {[%emt 0:03:51]} 30. a4 {[%emt 0:02:59]} Rc8 {[%emt 0:00:22]} 31. Bxg6 {[%emt 0:00:41]} hxg6 {[%emt 0:00:14]} 32. Rf3 {[%emt 0:00:08]} Rh7 {[%emt 0:00:46]} 33. h3 {[%emt 0:00:40]} Qe7 {[%emt 0:04:11]} 34. Rf6 {[%emt 0:01:42]} Ne8 {[%emt 0:00:45]} 35. R6f3 {[%emt 0:00:07]} Nd6 {[%emt 0:00:09]} 36. Rf6 {[%emt 0:00:01]} Rc4 {[%emt 0:01:45]} 37. Qe5 {[%emt 0:01:20]} Rxa4 {[%emt 0:02:16]} 38. Rb1 {[%emt 0:00:29]} Qf8 {[%emt 0:01:20]} 39. Rbf1 {[%emt 0:02:02]} Qe7 {[%emt 0:00:52]} 40. Rb1 {[%emt 0:00:00]} Qf8 {[%emt 0:00:00]} 41. Rbf1 {[%emt 0:03:53]} Qd8 {[%emt 0:05:36]} 42. Rb1 {[%emt 0:12:01]} Rc4 {[%emt 0:01:21]} 43. Qg5 {[%emt 0:01:12]} Rg7 {[%emt 0:02:09]} 44. Qe5 {[%emt 0:01:46]} Rc8 {[%emt 0:01:24]} 45. h4 {[%emt 0:01:18]} Ne8 {[%emt 0:05:12]} 46. Rf4 {[%emt 0:00:02]} Qc7 {[%emt 0:00:26]} 47. Qg5 {[%emt 0:06:21]} Qxc3 {[%emt 0:01:05]} 48. Rb7 {[%emt 0:01:14]} a4 {[%emt 0:03:04]} 49. Rxa4 {[%emt 0:04:04]} Qc1+ {[%emt 0:00:42]} 50. Qxc1 {[%emt 0:00:16]} Rxc1+ {[%emt 0:00:04]} 51. Kh2 {[%emt 0:00:01]} Rc8 {[%emt 0:00:51]} 52. Rb6 {[%emt 0:01:43]} Rh7 {[%emt 0:00:31]} 53. Nf1 {[%emt 0:00:50]} g5 {[%emt 0:01:12]} 54. g3 {[%emt 0:00:17]} gxh4 {[%emt 0:00:10]} 55. gxh4 {[%emt 0:00:03]} Nf6 {[%emt 0:00:34]} 56. Rf4 {[%emt 0:00:56]} Ne4 {[%emt 0:02:02]} 57. Ne3 {[%emt 0:00:32]} Ra8 {[%emt 0:04:14]} 58. Rb3 {[%emt 0:00:50]} Kf8 {[%emt 0:01:34]} 59. Kh3 {[%emt 0:01:01]} Ra1 {[%emt 0:01:57]} 60. Nf1 {[%emt 0:02:57]} Nd6 {[%emt 0:02:26]} 61. Ng3 {[%emt 0:00:15]} Ke7 {[%emt 0:00:25]} 62. Rc3 {[%emt 0:01:38]} Kd7 {[%emt 0:00:26]} 63. h5 {[%emt 0:00:00]} Ra8 {[%emt 0:00:43]} 64. Rb4 {[%emt 0:00:34]} f5 {[%emt 0:00:58]} 65. Rcb3 {[%emt 0:00:31]} Rah8 {[%emt 0:00:23]} 66. Kh4 {[%emt 0:00:08]} e5 {[%emt 0:00:36]} 67. Ra3 {[%emt 0:00:52]} f4 {[%emt 0:01:45]} 68. Ra7+ {[%emt 0:00:02]} Ke6 {[%emt 0:00:10]} 69. Rxh7 {[%emt 0:00:02]} Rxh7 {[%emt 0:00:05]} 70. Nf1 {[%emt 0:01:21]} Nf5+ {[%emt 0:00:33]} 71. Kg4 {[%emt 0:00:03]} Rg7+ {[%emt 0:00:15]} 72. Kf3 {[%emt 0:00:22]} Nd4+ {[%emt 0:00:45]} 73. Kf2 {[%emt 0:00:09]} Kf5 {[%emt 0:00:27]} 74. Rb6 {[%emt 0:00:29]} e4 {[%emt 0:00:32]} 75. h6 {[%emt 0:00:15]} Rh7 {[%emt 0:00:18]} 76. Rd6 {[%emt 0:00:16]} Ke5 {[%emt 0:00:09]} 77. Rg6 {[%emt 0:00:02]} e3+ {[%emt 0:00:48] Kf3} 0-1

[Event "69th RUS-ch Women Superfinal 2019"]
[Site "Izhevsk"]
[Date "2019.08.21"]
[Round "10.1"]
[White "Kashlinskaya, Alina"]
[Black "Potapova, Margarita"]
[Result "0-1"]
[ECO "A45"]
[WhiteElo "2492"]
[BlackElo "2292"]
[Annotator "ChessBase"]
[PlyCount "84"]
[EventDate "2019.08.10"]
[EventType "tourn"]
[EventCountry "RUS"]
[SourceTitle "playchess.com"]
[Source "ChessBase"]
[SourceQuality "1"]
[TimeControl "40/5400+30:1800+30"]

1. d4 {[%emt 0:00:00]} Nf6 {[%emt 0:00:00]} 2. Bg5 {[%emt 0:00:00]} Ne4 {[%emt 0:00:01]} 3. Bf4 {[%emt 0:00:00]} c5 {[%emt 0:00:41]} 4. f3 {[%emt 0:00:00]} Qa5+ {[%emt 0:00:19]} 5. c3 {[%emt 0:00:10]} Nf6 {[%emt 0:00:05]} 6. d5 {[%emt 0:00:09]} e6 {[%emt 0:01:06]} 7. e4 {[%emt 0:00:20]} exd5 {[%emt 0:08:04]} 8. exd5 {[%emt 0:00:17]} d6 {[%emt 0:01:33]} 9. Na3 {[%emt 0:00:18]} Be7 {[%emt 0:00:47]} 10. Nc4 {[%emt 0:00:37]} Qd8 {[%emt 0:01:12]} 11. g4 {[%emt 0:00:52]} O-O {[%emt 0:04:51]} 12. Qd2 {[%emt 0:04:58]} Re8 {[%emt 0:04:11]} 13. O-O-O {[%emt 0:06:53]} b5 {[%emt 0:01:31]} 14. Ne3 {[%emt 0:00:15]} Qa5 {[%emt 0:04:11]} 15. Kb1 {[%emt 0:00:21]} Nbd7 {[%emt 0:13:33]} 16. Nf5 {[%emt 0:09:12]} Ne5 {[%emt 0:14:02]} 17. Nxe7+ {[%emt 0:17:10]} Rxe7 {[%emt 0:00:07]} 18. Bg5 {[%emt 0:00:15]} Ned7 {[%emt 0:04:45]} 19. Qc2 {[%emt 0:10:13]} Bb7 {[%emt 0:01:59]} 20. c4 {[%emt 0:00:25]} h6 {[%emt 0:08:30]} 21. Bd2 {[%emt 0:01:13]} Qb6 {[%emt 0:00:37]} 22. h4 {[%emt 0:04:22]} bxc4 {[%emt 0:01:24]} 23. g5 {[%emt 0:02:32]} Nxd5 {[%emt 0:00:14]} 24. gxh6 {[%emt 0:01:19]} Ne5 {[%emt 0:03:30]} 25. Bxc4 {[%emt 0:05:48]} Nb4 {[%emt 0:05:02]} 26. Bxb4 {[%emt 0:04:55]} Qxb4 {[%emt 0:00:23]} 27. Bd3 {[%emt 0:00:09]} gxh6 {[%emt 0:08:17]} 28. Rh2 {[%emt 0:02:30]} Kh8 {[%emt 0:00:50]} 29. Bf5 {[%emt 0:03:45]} Nc4 {[%emt 0:01:52]} 30. Qc1 {[%emt 0:01:22]} Ne3 {[%emt 0:00:31]} 31. Rxd6 {[%emt 0:06:57]} Qf4 {[%emt 0:02:38]} 32. Qc3+ {[%emt 0:00:02]} Kg8 {[%emt 0:00:28]} 33. Rhd2 {[%emt 0:04:16]} Qxf5+ {[%emt 0:00:40]} 34. Kc1 {[%emt 0:00:01]} Qe5 {[%emt 0:05:20]} 35. Qd3 {[%emt 0:05:19]} Nf5 {[%emt 0:01:10]} 36. Rd7 {[%emt 0:00:02]} Rxd7 {[%emt 0:01:40]} 37. Qxd7 {[%emt 0:00:03]} Rb8 {[%emt 0:01:21]} 38. Rg2+ {[%emt 0:10:04]} Ng7 {[%emt 0:00:29]} 39. Qd2 {[%emt 0:01:31]} Qf6 {[%emt 0:00:47]} 40. Ne2 {[%emt 0:00:00]} Rd8 {[%emt 0:00:00]} 41. Qe3 {[%emt 0:02:14]} Qxf3 {[%emt 0:01:40]} 42. Qe7 {[%emt 0:00:29]} Qf1+ {[%emt 0:00:24]} 0-1